[Event "South Island Championships 2023"]
[Site "Oamaru, New Zealand"]
[Date "2023.09.28"]
[Round "3.1"]
[White "Lee, Edward S"]
[Black "Lukey, Stephen G"]
[Result "1/2-1/2"]
[TimeControl "90 + 30"]
[WhiteFideId "4303229"]
[BlackFideId "4300386"]
[WhiteElo "2088"]
[BlackElo "2307"]

1. b3 {[%clk 01:30:58]} e5 {[%clk 01:30:25]} {[%emt 00:00:35]} 2. Bb2 {[%clk
01:31:18]} {[%emt 00:00:10]} Nc6 {[%clk 01:30:41]} {[%emt 00:00:14]} 3. e3
{[%clk 01:31:14]} {[%emt 00:00:34]} d5 {[%clk 01:30:43]} {[%emt 00:00:29]} 4.
Bb5 {[%clk 01:31:07]} {[%emt 00:00:36]} Bd6 {[%clk 01:30:40]} {[%emt 00:00:33]}
5. Nf3 {[%clk 01:30:57]} {[%emt 00:00:40]} Qe7 {[%clk 01:29:41]} {[%emt
00:01:29]} 6. d4 {[%clk 01:27:04]} {[%emt 00:04:24]} e4 {[%clk 01:17:38]}
{[%emt 00:12:33]} 7. Nfd2 {[%clk 01:27:19]} {[%emt 00:00:15]} Qg5 {[%clk
01:17:26]} {[%emt 00:00:42]} 8. g3 {[%clk 01:24:24]} {[%emt 00:03:25]} Bg4
{[%clk 01:15:00]} {[%emt 00:02:56]} 9. Qc1 {[%clk 01:22:02]} {[%emt 00:02:52]}
a6 {[%clk 01:07:45]} {[%emt 00:07:45]} 10. Bxc6+ {[%clk 01:21:51]} {[%emt
00:00:41]} bxc6 {[%clk 01:08:12]} {[%emt 00:00:03]} 11. c4 {[%clk 01:22:14]}
{[%emt 00:00:07]} Bd7 {[%clk 00:58:17]} {[%emt 00:10:25]} 12. c5 {[%clk
01:12:18]} {[%emt 00:10:26]} Be7 {[%clk 00:58:36]} {[%emt 00:00:10]} 13. f4
{[%clk 01:12:16]} {[%emt 00:00:32]} exf3 {[%clk 00:58:44]} {[%emt 00:00:23]} 14.
Nxf3 {[%clk 01:12:40]} {[%emt 00:00:06]} Qh5 {[%clk 00:54:42]} {[%emt
00:04:32]} 15. Ne5 {[%clk 01:04:57]} {[%emt 00:08:13]} Bh3 {[%clk 00:52:48]}
{[%emt 00:02:24]} 16. Qd1 {[%clk 01:00:51]} {[%emt 00:04:37]} Qf5 {[%clk
00:52:28]} {[%emt 00:00:49]} 17. Qd3 {[%clk 00:55:45]} {[%emt 00:05:36]} Qe6
{[%clk 00:51:32]} {[%emt 00:01:25]} 18. Nd2 {[%clk 00:54:26]} {[%emt 00:01:50]}
Bg5 {[%clk 00:46:50]} {[%emt 00:05:13]} 19. O-O-O {[%clk 00:46:36]} {[%emt
00:08:20]} Nf6 {[%clk 00:44:39]} {[%emt 00:02:41]} 20. Bc3 {[%clk 00:42:24]}
{[%emt 00:04:41]} O-O {[%clk 00:44:42]} {[%emt 00:00:27]} 21. Rde1 {[%clk
00:41:57]} {[%emt 00:00:58]} a5 {[%clk 00:39:56]} {[%emt 00:05:16]} 22. a3
{[%clk 00:38:27]} {[%emt 00:04:00]} Rfb8 {[%clk 00:39:44]} {[%emt 00:00:42]} 23.
Kb2 {[%clk 00:38:08]} {[%emt 00:00:49]} Rb7 {[%clk 00:34:57]} {[%emt 00:05:17]}
24. Rhg1 {[%clk 00:29:57]} {[%emt 00:08:40]} h5 {[%clk 00:29:04]} {[%emt
00:06:23]} 25. Ka2 {[%clk 00:26:53]} {[%emt 00:03:35]} Bf5 {[%clk 00:19:58]}
{[%emt 00:09:35]} 26. Qe2 {[%clk 00:24:48]} {[%emt 00:02:35]} Ne4 {[%clk
00:18:22]} {[%emt 00:02:05]} 27. Nxe4 {[%clk 00:23:22]} {[%emt 00:01:57]} dxe4
{[%clk 00:17:30]} {[%emt 00:01:22]} 28. Qc4 {[%clk 00:20:58]} {[%emt 00:02:54]}
a4 {[%clk 00:14:51]} {[%emt 00:03:10]} 29. Bb4 {[%clk 00:15:01]} {[%emt
00:06:27]} axb3+ {[%clk 00:15:14]} {[%emt 00:00:06]} 30. Kxb3 {[%clk 00:14:53]}
{[%emt 00:00:38]} Qe8 {[%clk 00:14:32]} {[%emt 00:01:12]} 31. Kc2 {[%clk
00:13:15]} {[%emt 00:02:09]} Be6 {[%clk 00:14:30]} {[%emt 00:00:32]} 32. Qc3
{[%clk 00:13:31]} {[%emt 00:00:14]} Qd8 {[%clk 00:10:29]} {[%emt 00:04:29]} 33.
Nc4 {[%clk 00:07:06]} {[%emt 00:06:55]} Qd5 {[%clk 00:10:20]} {[%emt 00:00:40]}
34. Nb2 {[%clk 00:06:47]} {[%emt 00:00:49]} Bh3 {[%clk 00:07:21]} {[%emt
00:03:29]} 35. Re2 {[%clk 00:06:47]} {[%emt 00:00:30]} Qf5 {[%clk 00:05:02]}
{[%emt 00:02:49]} 36. Rge1 {[%clk 00:06:53]} {[%emt 00:00:25]} Bg4 {[%clk
00:03:46]} {[%emt 00:01:45]} 37. Rg2 {[%clk 00:07:08]} {[%emt 00:00:15]} Bf3
{[%clk 00:03:54]} {[%emt 00:00:23]} 38. Rf2 {[%clk 00:07:19]} {[%emt 00:00:19]}
h4 {[%clk 00:04:07]} {[%emt 00:00:35]} 39. Qd2 {[%clk 00:07:35]} hxg3 {[%clk
00:01:46]} {[%emt 00:02:47]} 40. hxg3 {[%clk 00:07:59]} {[%emt 00:00:05]} Qg4
{[%clk 00:01:38]} {[%emt 00:00:38]} 41. Rg1 {[%clk 00:08:21]} {[%emt 00:00:08]}
Qe6 {[%clk 00:01:35]} {[%emt 00:00:33]} 42. Rh2 {[%clk 00:07:53]} {[%emt
00:00:58]} f6 {[%clk 00:01:43]} {[%emt 00:00:22]} 43. Qc3 {[%clk 00:08:16]}
{[%emt 00:00:07]} Rbb8 {[%clk 00:01:46]} {[%emt 00:00:27]} 44. Re1 {[%clk
00:08:16]} {[%emt 00:00:30]} Kf7 {[%clk 00:01:29]} {[%emt 00:00:46]} 45. Qc4
{[%clk 00:08:21]} {[%emt 00:00:25]} Rh8 {[%clk 00:01:54]} {[%emt 00:00:06]} 46.
Qxe6+ {[%clk 00:08:09]} {[%emt 00:00:42]} Kxe6 {[%clk 00:02:20]} {[%emt
00:00:04]} 47. Rxh8 {[%clk 00:08:28]} {[%emt 00:00:11]} Rxh8 {[%clk 00:02:47]}
{[%emt 00:00:04]} 48. a4 {[%clk 00:08:48]} {[%emt 00:00:09]} Rh2+ {[%clk
00:02:25]} {[%emt 00:00:51]} 49. Kb3 {[%clk 00:08:34]} {[%emt 00:00:44]} Kd7
{[%clk 00:01:45]} {[%emt 00:01:11]} 50. a5 {[%clk 00:08:48]} {[%emt 00:00:16]}
Rh8 {[%clk 00:01:01]} {[%emt 00:01:14]} 51. Nc4 {[%clk 00:07:58]} {[%emt
00:01:19]} Bg4 {[%clk 00:01:05]} {[%emt 00:00:26]} 52. Nb6+ {[%clk 00:07:46]}
{[%emt 00:00:42]} cxb6 {[%clk 00:01:22]} {[%emt 00:00:13]} 53. cxb6 {[%clk
00:08:12]} {[%emt 00:00:04]} Be6+ {[%clk 00:01:32]} {[%emt 00:00:21]} 54. Kc3
{[%clk 00:08:24]} {[%emt 00:00:18]} c5 {[%clk 00:00:58]} {[%emt 00:01:05]} 55.
dxc5 {[%clk 00:08:35]} {[%emt 00:00:18]} Kc6 {[%clk 00:01:19]} {[%emt
00:00:09]} 56. a6 {[%clk 00:08:51]} {[%emt 00:00:13]} Bc8 {[%clk 00:01:25]}
{[%emt 00:00:25]} 57. b7 {[%clk 00:07:32]} {[%emt 00:08:39]} Bxb7 {[%clk
00:01:49]} 58. axb7 {[%clk 00:07:57]} Kxb7 {[%clk 00:02:17]} 59. Kd4 {[%clk
00:08:07]} f5 {[%clk 00:01:38]} 60. g4 {[%clk 00:07:25]} Bf6+ {[%clk 00:01:53]}
61. Kd5 {[%clk 00:07:48]} Rd8+ {[%clk 00:01:30]} 62. Ke6 {[%clk 00:07:38]} fxg4
{[%clk 00:01:21]} 63. Kf5 {[%clk 00:07:44]} Kc6 {[%clk 00:01:05]} 64. Kxe4
{[%clk 00:07:54]} {[%emt 00:00:07]} Kb5 {[%clk 00:01:21]} {[%emt 00:00:15]} 65.
Rb1 {[%clk 00:07:53]} {[%emt 00:00:31]} Kc4 {[%clk 00:01:14]} {[%emt 00:00:37]}
66. Ba5 {[%clk 00:06:43]} {[%emt 00:01:39]} Re8 {[%clk 00:01:31]} {[%emt
00:00:13]} 67. Kf4 {[%clk 00:07:07]} {[%emt 00:00:06]} Kxc5 {[%clk 00:01:42]}
{[%emt 00:00:19]} 68. Kxg4 {[%clk 00:07:33]} {[%emt 00:00:04]} Kd5 {[%clk
00:01:52]} {[%emt 00:00:18]} 69. Kf3 {[%clk 00:07:49]} {[%emt 00:00:16]} Be5
{[%clk 00:01:39]} {[%emt 00:00:43]} 70. Rb6 {[%clk 00:07:12]} {[%emt 00:01:04]}
Rf8+ {[%clk 00:02:02]} {[%emt 00:00:10]} 71. Ke2 {[%clk 00:07:02]} {[%emt
00:00:41]} Ra8 {[%clk 00:01:49]} {[%emt 00:00:42]} 72. Rb5+ {[%clk 00:07:04]}
{[%emt 00:00:29]} Ke4 {[%clk 00:02:03]} {[%emt 00:00:15]} 73. Rxe5+ {[%clk
00:06:01]} {[%emt 00:01:33]} Kxe5 {[%clk 00:02:19]} {[%emt 00:00:14]} 74. Bc3+
{[%clk 00:06:27]} {[%emt 00:00:04]} Ke4 {[%clk 00:02:43]} {[%emt 00:00:05]} 75.
Bxg7 {[%clk 00:06:51]} {[%emt 00:00:06]} Ra2+ {[%clk 00:03:01]} {[%emt
00:00:13]} 76. Kd1 {[%clk 00:07:10]} {[%emt 00:00:11]} Kxe3 {[%clk 00:03:25]}
{[%emt 00:00:06]} 77. Kc1 {[%clk 00:07:36]} {[%emt 00:00:05]} Kd3 {[%clk
00:03:40]} {[%emt 00:00:15]} 78. Kb1 {[%clk 00:08:01]} {[%emt 00:00:05]} Rg2
{[%clk 00:03:59]} {[%emt 00:00:10]} 79. Bb2 {[%clk 00:08:17]} {[%emt 00:00:13]}
Kc4 {[%clk 00:04:15]} {[%emt 00:00:16]} 80. Be5 {[%clk 00:07:21]} {[%emt
00:01:25]} Kb3 {[%emt 00:00:52]} 81. Kc1 {[%clk 00:07:43]} {[%emt 00:00:05]}
Ra2 {[%clk 00:04:05]} {[%emt 00:00:21]} 82. Kd1 {[%clk 00:07:58]} {[%emt
00:00:15]} Rc2 {[%clk 00:04:17]} {[%emt 00:00:18]} 83. Bf6 {[%clk 00:08:17]}
{[%emt 00:00:11]} Rg2 {[%clk 00:03:53]} {[%emt 00:00:53]} 84. Be5 {[%clk
00:08:33]} {[%emt 00:00:15]} Kc4 {[%clk 00:03:59]} {[%emt 00:00:24]} 1/2-1/2

[Event "South Island Championships 2023"]
[Site "Oamaru, New Zealand"]
[Date "2023.09.28"]
[Round "3.6"]
[White "Williams, Matt"]
[Black "Carpinter, Anthony L"]
[Result "0-1"]
[TimeControl "90 + 30"]
[WhiteFideId "4319575"]
[BlackFideId "4300238"]
[WhiteElo "1828"]
[BlackElo "2217"]

1. d4 {[%clk 01:30:58]} d5 {[%clk 01:30:53]} {[%emt 00:00:07]} 2. Nc3 {[%clk
01:31:22]} {[%emt 00:00:06]} e6 {[%clk 01:31:02]} {[%emt 00:00:22]} 3. Bf4
{[%clk 01:31:42]} {[%emt 00:00:09]} Bd6 {[%clk 01:29:39]} {[%emt 00:01:53]} 4.
Qd2 {[%clk 01:31:39]} {[%emt 00:00:34]} Nf6 {[%clk 01:28:47]} {[%emt 00:01:22]}
5. Nb5 {[%clk 01:30:03]} {[%emt 00:02:06]} Nc6 {[%clk 01:22:03]} {[%emt
00:07:13]} 6. Nxd6+ {[%clk 01:28:24]} {[%emt 00:02:08]} cxd6 {[%clk 01:22:24]}
{[%emt 00:00:10]} 7. Nf3 {[%clk 01:28:10]} {[%emt 00:00:44]} Ne4 {[%clk
01:19:24]} {[%emt 00:03:30]} 8. Qd3 {[%clk 01:27:03]} {[%emt 00:01:37]} f5
{[%clk 01:10:44]} {[%emt 00:09:10]} 9. h4 {[%clk 01:20:56]} {[%emt 00:06:37]}
Qb6 {[%clk 01:06:38]} {[%emt 00:04:36]} 10. Rb1 {[%clk 01:16:44]} {[%emt
00:04:41]} Bd7 {[%clk 00:44:18]} {[%emt 00:22:50]} 11. c3 {[%clk 01:13:51]}
{[%emt 00:03:22]} Ne7 {[%clk 00:42:24]} {[%emt 00:02:24]} 12. Ng5 {[%clk
01:10:50]} {[%emt 00:03:31]} h6 {[%clk 00:41:48]} {[%emt 00:01:07]} 13. Nxe4
{[%clk 01:10:33]} {[%emt 00:00:47]} fxe4 {[%clk 00:39:49]} {[%emt 00:02:30]} 14.
Qg3 {[%clk 01:10:48]} {[%emt 00:00:14]} O-O {[%clk 00:40:03]} {[%emt 00:00:17]}
15. Qh2 {[%clk 01:04:35]} {[%emt 00:06:43]} e5 {[%clk 00:37:51]} {[%emt
00:02:41]} 16. Be3 {[%clk 01:00:47]} {[%emt 00:04:17]} Nf5 {[%clk 00:38:07]}
{[%emt 00:00:14]} 17. g4 {[%clk 00:58:25]} {[%emt 00:02:52]} Nxe3 {[%clk
00:37:46]} {[%emt 00:00:52]} 18. fxe3 {[%clk 00:58:52]} {[%emt 00:00:03]} Bxg4
{[%clk 00:31:58]} {[%emt 00:06:16]} 19. Bh3 {[%clk 00:57:34]} {[%emt 00:01:49]}
Bxh3 {[%clk 00:31:39]} {[%emt 00:00:50]} 20. Qxh3 {[%clk 00:58:01]} {[%emt
00:00:03]} Rf6 {[%clk 00:31:49]} {[%emt 00:00:20]} 21. Rg1 {[%clk 00:56:44]}
{[%emt 00:01:47]} Raf8 {[%clk 00:31:15]} {[%emt 00:01:03]} 22. Kd2 {[%clk
00:54:13]} {[%emt 00:03:01]} Qb5 {[%clk 00:29:24]} {[%emt 00:02:23]} 23. Qg4
{[%clk 00:50:04]} {[%emt 00:04:38]} R8f7 {[%clk 00:29:27]} {[%emt 00:00:27]} 24.
Rg2 {[%clk 00:49:42]} {[%emt 00:00:52]} Qd7 {[%clk 00:27:48]} {[%emt 00:02:09]}
25. Qg3 {[%clk 00:47:59]} {[%emt 00:02:13]} Qe7 {[%clk 00:27:29]} {[%emt
00:00:49]} 26. Rbg1 {[%clk 00:47:07]} {[%emt 00:01:21]} Rf1 {[%clk 00:23:47]}
{[%emt 00:04:13]} 27. Qh3 {[%clk 00:40:40]} {[%emt 00:06:56]} Rxg1 {[%clk
00:23:45]} {[%emt 00:00:32]} 28. Rxg1 {[%clk 00:41:07]} {[%emt 00:00:03]} Qd7
{[%clk 00:23:17]} {[%emt 00:00:59]} 29. Qg2 {[%clk 00:39:49]} {[%emt 00:01:48]}
Qf5 {[%clk 00:22:28]} {[%emt 00:01:19]} 30. Qg3 {[%clk 00:38:47]} {[%emt
00:01:32]} Kf8 {[%clk 00:21:13]} {[%emt 00:01:45]} 31. b3 {[%clk 00:32:45]}
{[%emt 00:06:32]} a6 {[%clk 00:20:45]} {[%emt 00:00:58]} 32. a4 {[%clk
00:30:42]} {[%emt 00:02:33]} Kg8 {[%clk 00:17:07]} {[%emt 00:04:08]} 33. Rg2
{[%clk 00:29:10]} {[%emt 00:02:01]} Kh7 {[%clk 00:17:23]} {[%emt 00:00:14]} 34.
Qh2 {[%clk 00:28:27]} {[%emt 00:01:14]} g6 {[%clk 00:17:35]} {[%emt 00:00:18]}
35. Qg1 {[%clk 00:28:06]} {[%emt 00:00:51]} Rf6 {[%clk 00:17:39]} {[%emt
00:00:26]} 36. c4 {[%clk 00:27:31]} {[%emt 00:01:05]} exd4 {[%clk 00:16:57]}
{[%emt 00:01:12]} 37. exd4 {[%clk 00:26:16]} {[%emt 00:01:45]} dxc4 {[%clk
00:16:35]} {[%emt 00:00:50]} 38. Qa1 {[%clk 00:25:06]} {[%emt 00:01:43]} cxb3
{[%clk 00:16:01]} {[%emt 00:01:03]} 39. Qc3 {[%clk 00:24:56]} {[%emt 00:00:40]}
e3+ {[%clk 00:11:47]} {[%emt 00:04:44]} 40. Kc1 {[%clk 00:22:36]} {[%emt
00:02:50]} Qf1+ {[%clk 00:10:55]} {[%emt 00:01:23]} 41. Kb2 {[%clk 00:23:03]}
{[%emt 00:00:02]} Qxg2 {[%clk 00:11:10]} {[%emt 00:00:15]} 42. Qc7+ {[%clk
00:23:20]} {[%emt 00:00:13]} Kg8 {[%clk 00:11:28]} {[%emt 00:00:11]} 43. Qd8+
{[%clk 00:23:08]} {[%emt 00:00:43]} Kg7 {[%clk 00:11:48]} {[%emt 00:00:10]} 44.
Qd7+ {[%clk 00:22:15]} {[%emt 00:01:23]} Rf7 {[%clk 00:12:06]} {[%emt
00:00:12]} 45. Qxd6 {[%clk 00:22:37]} {[%emt 00:00:07]} Qxe2+ {[%clk 00:12:25]}
{[%emt 00:00:12]} 46. Kxb3 {[%clk 00:22:15]} {[%emt 00:00:51]} Qd3+ {[%clk
00:12:45]} {[%emt 00:00:11]} 0-1

[Event "South Island Championships 2023"]
[Site "Oamaru, New Zealand"]
[Date "2023.09.28"]
[Round "3.8"]
[White "Zhang, Kendrick Botong"]
[Black "Ong, Rommel"]
[Result "1-0"]
[TimeControl "90 + 30"]
[WhiteFideId "4307704"]
[BlackFideId "5259630"]
[WhiteElo "2067"]
[BlackElo "1852"]

1. e4 {[%clk 01:30:57]} {[%emt 00:00:02]} c5 {[%clk 01:30:57]} {[%emt
00:00:03]} 2. Nf3 {[%clk 01:31:22]} {[%emt 00:00:05]} d6 {[%clk 01:31:23]}
{[%emt 00:00:06]} 3. d4 {[%clk 01:31:49]} {[%emt 00:00:02]} cxd4 {[%clk
01:31:51]} {[%emt 00:00:02]} 4. Nxd4 {[%clk 01:32:14]} {[%emt 00:00:05]} Nf6
{[%clk 01:32:17]} {[%emt 00:00:03]} 5. Nc3 {[%clk 01:32:39]} {[%emt 00:00:05]}
a6 {[%clk 01:32:45]} {[%emt 00:00:03]} 6. Be3 {[%clk 01:32:59]} {[%emt
00:00:09]} e5 {[%clk 01:32:57]} {[%emt 00:00:18]} 7. Nb3 {[%clk 01:33:24]}
{[%emt 00:00:06]} Be7 {[%clk 01:33:04]} {[%emt 00:00:23]} 8. f3 {[%clk
01:33:48]} {[%emt 00:00:06]} Be6 {[%clk 01:33:20]} {[%emt 00:00:14]} 9. Qd2
{[%clk 01:34:13]} {[%emt 00:00:05]} Nbd7 {[%clk 01:33:25]} {[%emt 00:00:24]} 10.
O-O-O {[%clk 01:34:32]} {[%emt 00:00:12]} O-O {[%clk 01:33:42]} {[%emt
00:00:13]} 11. g4 {[%clk 01:34:25]} {[%emt 00:00:37]} b5 {[%clk 01:34:05]}
{[%emt 00:00:07]} 12. g5 {[%clk 01:33:56]} {[%emt 00:00:58]} b4 {[%clk
01:33:13]} {[%emt 00:01:23]} 13. Nd5 {[%clk 01:33:32]} {[%emt 00:00:53]} Nxd5
{[%clk 01:31:34]} {[%emt 00:02:09]} 14. exd5 {[%clk 01:33:55]} {[%emt
00:00:07]} Bf5 {[%clk 01:31:55]} {[%emt 00:00:10]} 15. h4 {[%clk 01:30:55]}
{[%emt 00:03:29]} a5 {[%clk 01:32:16]} {[%emt 00:00:11]} 16. Kb1 {[%clk
01:18:34]} {[%emt 00:12:49]} a4 {[%clk 01:29:53]} {[%emt 00:02:53]} 17. Nc1
{[%clk 01:18:31]} {[%emt 00:00:33]} Qa5 {[%clk 01:28:21]} {[%emt 00:02:03]} 18.
Bh3 {[%clk 01:07:46]} {[%emt 00:11:15]} Bxh3 {[%clk 01:28:36]} {[%emt
00:00:15]} 19. Rxh3 {[%clk 01:08:07]} {[%emt 00:00:07]} Rfc8 {[%clk 01:26:38]}
{[%emt 00:02:29]} 20. h5 {[%clk 01:03:21]} {[%emt 00:05:16]} b3 {[%clk
01:25:00]} {[%emt 00:02:09]} 21. cxb3 {[%clk 00:45:51]} {[%emt 00:17:59]} a3
{[%clk 01:22:56]} {[%emt 00:02:35]} 22. Qxa5 {[%clk 00:34:08]} {[%emt
00:12:13]} Rxa5 {[%clk 01:23:24]} {[%emt 00:00:02]} 23. Ne2 {[%clk 00:33:40]}
{[%emt 00:00:58]} axb2 {[%clk 01:18:26]} {[%emt 00:05:28]} 24. Kxb2 {[%clk
00:33:49]} {[%emt 00:00:20]} Nc5 {[%clk 01:17:08]} {[%emt 00:01:49]} 25. Nc3
{[%clk 00:27:40]} {[%emt 00:06:39]} Ra6 {[%clk 01:12:41]} {[%emt 00:04:57]} 26.
Rh4 {[%clk 00:19:06]} {[%emt 00:09:04]} f5 {[%clk 01:07:03]} {[%emt 00:06:08]}
27. gxf6 {[%clk 00:12:12]} {[%emt 00:07:24]} Bxf6 {[%clk 01:07:26]} {[%emt
00:00:06]} 28. Rc4 {[%clk 00:12:37]} {[%emt 00:00:05]} e4 {[%clk 00:59:18]}
{[%emt 00:08:39]} 29. Bxc5 {[%clk 00:11:54]} {[%emt 00:01:13]} Rxc5 {[%clk
00:59:31]} {[%emt 00:00:17]} 30. Rxc5 {[%clk 00:12:17]} {[%emt 00:00:06]} dxc5
{[%clk 00:59:59]} {[%emt 00:00:03]} 31. fxe4 {[%clk 00:12:28]} {[%emt
00:00:19]} Kf7 {[%clk 00:58:58]} {[%emt 00:01:31]} 32. a4 {[%clk 00:10:25]}
{[%emt 00:02:33]} Ke7 {[%clk 00:59:04]} {[%emt 00:00:25]} 33. Kc2 {[%clk
00:09:47]} {[%emt 00:01:06]} Be5 {[%clk 00:59:21]} {[%emt 00:00:14]} 34. Nb5
{[%clk 00:09:15]} {[%emt 00:01:01]} Rf6 {[%clk 00:59:33]} {[%emt 00:00:19]} 35.
d6+ {[%clk 00:06:34]} {[%emt 00:03:11]} Kd7 {[%clk 00:57:39]} {[%emt 00:02:23]}
36. Rd5 {[%clk 00:06:53]} {[%emt 00:00:11]} Rf2+ {[%clk 00:57:31]} {[%emt
00:00:38]} 37. Kd3 {[%clk 00:06:56]} {[%emt 00:00:27]} Bf6 {[%clk 00:57:36]}
{[%emt 00:00:26]} 38. Rxc5 {[%clk 00:06:32]} {[%emt 00:00:54]} Rf3+ {[%clk
00:57:10]} {[%emt 00:00:56]} 39. Kc4 {[%clk 00:06:55]} {[%emt 00:00:07]} g5
{[%clk 00:57:28]} {[%emt 00:00:12]} 40. Rf5 {[%clk 00:05:35]} {[%emt 00:01:50]}
Rxf5 {[%clk 00:57:31]} {[%emt 00:00:27]} 41. exf5 {[%clk 00:05:56]} {[%emt
00:00:08]} g4 {[%clk 00:57:42]} {[%emt 00:00:20]} 42. Kd3 {[%clk 00:05:57]}
{[%emt 00:00:28]} Bd8 {[%clk 00:53:13]} {[%emt 00:04:59]} 43. Ke4 {[%clk
00:06:00]} {[%emt 00:00:27]} Bg5 {[%clk 00:52:49]} {[%emt 00:00:54]} 44. f6
{[%clk 00:03:28]} {[%emt 00:03:03]} Bxf6 {[%clk 00:53:08]} {[%emt 00:00:11]} 45.
Kf4 {[%clk 00:03:52]} {[%emt 00:00:06]} g3 {[%clk 00:53:04]} {[%emt 00:00:34]}
46. Kxg3 {[%clk 00:04:16]} {[%emt 00:00:05]} h6 {[%clk 00:53:31]} {[%emt
00:00:04]} 47. Kf4 {[%clk 00:04:25]} {[%emt 00:00:21]} Kc6 {[%clk 00:54:00]} 48.
Kf5 {[%clk 00:04:46]} {[%emt 00:00:08]} Bg5 {[%clk 00:54:27]} {[%emt 00:00:03]}
49. Ke6 {[%clk 00:05:07]} {[%emt 00:00:09]} Kc5 {[%clk 00:54:47]} {[%emt
00:00:10]} 50. d7 {[%clk 00:05:17]} {[%emt 00:00:20]} Kb4 {[%clk 00:55:16]} 51.
Nd4 {[%clk 00:05:25]} {[%emt 00:00:22]} Kc3 {[%clk 00:55:05]} {[%emt 00:00:41]}
52. Nc6 {[%clk 00:05:30]} {[%emt 00:00:26]} Kxb3 {[%clk 00:55:34]} 53. a5
{[%clk 00:05:50]} {[%emt 00:00:09]} 1-0

[Event "South Island Championships 2023"]
[Site "Oamaru, New Zealand"]
[Date "2023.09.28"]
[Round "3.10"]
[White "Loos, Rick"]
[Black "Coleman, Phil"]
[Result "0-1"]
[TimeControl "90 + 30"]
[WhiteFideId "0"]
[BlackFideId "4319443"]
[WhiteElo "1602"]
[BlackElo "1872"]

1. e4 {[%clk 01:30:56]} {[%emt 00:00:03]} c5 {[%clk 01:30:55]} {[%emt
00:00:05]} 2. Nf3 {[%clk 01:31:22]} {[%emt 00:00:04]} e6 {[%clk 01:31:09]}
{[%emt 00:00:16]} 3. d4 {[%clk 01:31:43]} {[%emt 00:00:09]} cxd4 {[%emt
00:00:07]} 4. Nxd4 {[%emt 00:00:05]} a6 {[%clk 01:31:19]} {[%emt 00:00:05]} 5.
g3 {[%clk 01:30:58]} {[%emt 00:01:18]} Qc7 {[%clk 01:31:29]} {[%emt 00:00:21]}
6. Bg2 {[%clk 01:31:06]} {[%emt 00:00:22]} Nf6 {[%clk 01:31:12]} {[%emt
00:00:46]} 7. O-O {[%clk 01:31:10]} {[%emt 00:00:26]} Nc6 {[%clk 01:30:26]}
{[%emt 00:01:16]} 8. Nxc6 {[%clk 01:27:38]} {[%emt 00:04:03]} bxc6 {[%clk
01:30:23]} {[%emt 00:00:32]} 9. c4 {[%clk 01:26:04]} {[%emt 00:02:04]} Be7
{[%clk 01:28:06]} {[%emt 00:02:47]} 10. Nc3 {[%clk 01:24:02]} {[%emt 00:02:33]}
O-O {[%clk 01:27:44]} {[%emt 00:00:49]} 11. Qe2 {[%clk 01:21:25]} {[%emt
00:03:09]} d6 {[%clk 01:27:33]} {[%emt 00:00:42]} 12. Be3 {[%clk 01:20:00]}
{[%emt 00:01:54]} Rb8 {[%clk 01:26:35]} {[%emt 00:01:29]} 13. f4 {[%clk
01:19:01]} {[%emt 00:01:29]} Bb7 {[%clk 01:25:38]} {[%emt 00:01:26]} 14. Rac1
{[%clk 01:18:25]} {[%emt 00:01:06]} Rfe8 {[%clk 01:17:11]} {[%emt 00:08:57]} 15.
g4 {[%clk 01:17:30]} {[%emt 00:01:25]} h6 {[%clk 01:11:28]} {[%emt 00:06:13]}
16. g5 {[%clk 01:11:12]} {[%emt 00:06:48]} hxg5 {[%clk 01:11:46]} {[%emt
00:00:12]} 17. fxg5 {[%clk 01:11:37]} {[%emt 00:00:04]} Nh7 {[%clk 01:10:33]}
{[%emt 00:01:45]} 18. Qh5 {[%clk 01:10:50]} {[%emt 00:01:16]} g6 {[%clk
01:10:07]} {[%emt 00:00:57]} 19. Rf3 {[%clk 01:10:42]} {[%emt 00:00:37]} gxh5
{[%clk 01:10:09]} {[%emt 00:00:27]} 0-1